bitfinex-derivatives/quotes_BTCF0:USTF0_20210102
["timestamp","ask_amount","ask_price","bid_price","bid_amount"]
[1609571138181,4.56128349,29733.0,29732.0,0.00038128]
[1609571138481,4.56128349,29733.0,29727.0,0.00038128]
[1609571138782,4.56128349,29733.0,29726.0,0.04140145]
[1609571138981,4.56128349,29733.0,29728.0,0.00038126]
[1609571139282,0.18043158,29729.0,29727.0,0.00038126]
[1609571139683,0.18043158,29729.0,29726.0,0.04102017]
[1609571139884,0.18043158,29729.0,29728.0,0.00038125]
[1609571140085,0.18043158,29729.0,29726.0,0.04140142]
[1609571140284,0.18043158,29729.0,29728.0,0.00038125]
[1609571140586,0.18043158,29729.0,29727.0,0.00038125]
[1609571140885,0.18043158,29729.0,29726.0,0.04140142]
[1609571141085,0.18043158,29729.0,29728.0,0.00038125]
[1609571141285,0.18043158,29729.0,29728.0,0.18081283]
[1609571141486,0.18043158,29729.0,29728.0,0.18043158]
[1609571141687,0.18043158,29729.0,29728.0,0.22182965]
[1609571142486,0.18043158,29729.0,29728.0,0.18081283]
[1609571143292,0.17838477,29729.0,29728.0,0.18081283]
[1609571144289,0.17838477,29729.0,29728.0,0.22183075]
[1609571144590,0.17838477,29729.0,29728.0,0.22183076]
[1609571151304,1.17838477,29729.0,29728.0,0.22183076]
[1609571151502,5.14798477,29729.0,29728.0,0.00038126]
[1609571151703,5.14798477,29729.0,29721.0,2.02559985]
[1609571152003,5.14798477,29729.0,29722.0,0.00038149]
[1609571153003,5.14798477,29729.0,29717.0,0.00038155]
[1609571153303,1.17838477,29729.0,29717.0,0.00038155]
[1609571153505,0.18043158,29718.0,29717.0,0.18081313]
[1609571154305,0.18043158,29718.0,29717.0,0.22184201]
[1609571155205,0.18043158,29718.0,29717.0,0.18081313]
[1609571158511,0.17838424,29718.0,29717.0,0.18081313]
[1609571160114,0.17838424,29718.0,29717.0,0.22184089]
[1609571168723,0.17633696,29718.0,29717.0,0.22184089]
[1609571184350,0.17428973,29718.0,29717.0,0.22184089]
[1609571189956,0.13592,29723.0,29717.0,0.04140931]
[1609571190457,6.4959,29727.0,29719.0,0.18043158]
[1609571190757,6.4959,29727.0,29720.0,0.04140828]
[1609571191658,6.4959,29727.0,29717.0,0.12346164]
[1609571191859,6.4959,29727.0,29721.0,0.04140831]
[1609571192062,6.64319,29727.0,29718.0,0.04140877]
[1609571192361,6.64319,29727.0,29722.0,0.04140875]
[1609571192561,0.18043158,29723.0,29722.0,0.04140875]
[1609571192762,0.18043158,29723.0,29719.0,0.04140853]
[1609571192960,0.18043158,29723.0,29717.0,0.26248499]
[1609571193260,0.18043158,29723.0,29720.0,0.0414094]
[1609571193460,0.18043158,29723.0,29718.0,0.04140942]
[1609571193461,1.18043158,29723.0,29718.0,0.04140942]
[1609571193663,1.18043158,29723.0,29721.0,0.0414096]
[1609571193961,1.18043158,29723.0,29718.0,0.04140936]
[1609571194163,1.18043158,29723.0,29722.0,0.04140936]
[1609571194466,1.18043158,29723.0,29719.0,0.04140977]
[1609571194766,0.18043158,29720.0,29717.0,0.26248764]
[1609571194965,0.18043158,29720.0,29717.0,0.18043158]
[1609571195268,0.18043158,29720.0,29718.0,0.04140932]
[1609571197970,0.18043158,29720.0,29717.0,0.18043158]
[1609571198170,0.18043158,29720.0,29718.0,0.0414108]
[1609571199172,0.17838416,29720.0,29718.0,0.0414108]
[1609571199672,0.17838416,29720.0,29718.0,0.04102926]
[1609571199873,0.17838416,29720.0,29717.0,0.18043158]
[1609571200073,0.17838416,29720.0,29719.0,0.04141102]
[1609571200271,0.17838416,29720.0,29718.0,0.04141105]
[1609571200471,0.17838416,29720.0,29719.0,0.04141115]
[1609571201073,0.17838416,29720.0,29718.0,0.04141131]
[1609571201273,0.17838416,29720.0,29719.0,0.04141113]
[1609571201573,1.17838416,29720.0,29719.0,0.04141113]
[1609571201875,1.17838416,29720.0,29718.0,0.04141102]
[1609571202075,1.17838416,29720.0,29719.0,0.04141065]
[1609571202675,1.17838416,29720.0,29719.0,0.0410291]
[1609571202875,1.17838416,29720.0,29719.0,0.04141046]
[1609571203075,1.17838416,29720.0,29719.0,0.00038155]
[1609571203476,0.17838416,29720.0,29718.0,0.04141048]
[1609571203676,0.17838416,29720.0,29719.0,0.00038155]
[1609571204178,0.17838416,29720.0,29718.0,0.04141048]
[1609571204480,0.17838416,29720.0,29719.0,0.00038155]
[1609571204881,0.17838416,29720.0,29718.0,0.04141048]
[1609571205081,0.17838416,29720.0,29719.0,0.0003809]
[1609571205679,0.17838416,29720.0,29718.0,0.04140983]
[1609571205881,0.17838416,29720.0,29719.0,0.0003809]
[1609571206383,0.17838416,29720.0,29718.0,0.04140983]
[1609571206584,0.17838416,29720.0,29719.0,0.0003809]
[1609571207185,0.17838416,29720.0,29718.0,0.04140983]
[1609571207386,0.17838416,29720.0,29719.0,0.0003809]
[1609571207987,0.17838416,29720.0,29718.0,0.04140983]
[1609571208186,0.17838416,29720.0,29719.0,0.0003809]
[1609571208687,0.17838416,29720.0,29718.0,0.04140983]
[1609571208989,0.17838416,29720.0,29719.0,0.0003809]
[1609571209287,0.17838416,29720.0,29718.0,0.04140983]
[1609571209488,0.17838416,29720.0,29719.0,0.0003809]
[1609571209889,0.17633675,29720.0,29719.0,0.0003809]
[1609571210087,5.82283675,29720.0,29718.0,0.04140983]
[1609571210291,5.82283675,29720.0,29719.0,0.0003809]
[1609571210889,5.82283675,29720.0,29718.0,0.04140983]
[1609571211089,0.17633675,29720.0,29719.0,0.0003809]
[1609571211490,0.17633675,29720.0,29718.0,0.04140983]
[1609571211491,5.16083675,29720.0,29718.0,0.04140983]
[1609571211689,5.16083675,29720.0,29719.0,0.0003809]
[1609571212289,5.16083675,29720.0,29713.0,0.04141233]
[1609571212493,5.16083675,29720.0,29719.0,0.00038092]
[1609571212690,5.16083675,29720.0,29714.0,0.00038092]
[1609571212889,0.18043158,29715.0,29714.0,0.00038092]
[1609571213090,0.18043158,29715.0,29711.0,0.0414129]
[1609571213290,4.10153158,29715.0,29714.0,0.00038092]
[1609571213492,5.10153158,29715.0,29712.0,0.04141467]
[1609571213691,5.10153158,29715.0,29714.0,0.00038094]
[1609571214094,5.10153158,29715.0,29713.0,0.04141503]
[1609571214292,5.10153158,29715.0,29714.0,0.00038094]
[1609571214691,6.10153158,29715.0,29714.0,0.00038094]
[1609571214892,6.10153158,29715.0,29713.0,0.00038094]
[1609571215094,6.10153158,29715.0,29714.0,0.00038097]
[1609571215292,6.10153158,29715.0,29707.0,1.540335]
[1609571215494,1.0,29714.0,29707.0,1.540335]
[1609571215694,5.3618,29708.0,29707.0,1.540335]
[1609571215894,5.3618,29708.0,29707.0,1.54071597]
[1609571216098,5.3618,29708.0,29707.0,0.00038097]
[1609571216595,5.3618,29708.0,29703.0,0.04141889]
[1609571216795,0.18043158,29704.0,29703.0,0.04141889]
[1609571216996,0.71993158,29704.0,29703.0,0.04103792]
[1609571217196,0.71993158,29704.0,29703.0,0.0414189]
[1609571217395,0.71993158,29704.0,29702.0,0.04141925]
[1609571217598,1.71993158,29704.0,29702.0,0.04141925]
[1609571217798,1.71993158,29704.0,29703.0,0.04142026]
[1609571217998,1.18043158,29704.0,29703.0,0.04142026]
[1609571218199,1.18043158,29704.0,29702.0,0.04142049]
[1609571218600,1.18043158,29704.0,29703.0,0.00038102]
[1609571218899,1.18043158,29704.0,29703.0,0.1808126]
[1609571219101,1.18043158,29704.0,29703.0,0.18043158]
[1609571219301,1.18043158,29704.0,29703.0,0.2218535]
[1609571219501,0.18043158,29704.0,29703.0,0.2218535]
[1609571220603,0.18043158,29704.0,29703.0,0.22185347]
[1609571220804,0.18043158,29704.0,29703.0,0.04142189]
[1609571221206,0.18043158,29704.0,29701.0,0.1205]
[1609571221207,0.18043158,29704.0,29702.0,0.04142047]
[1609571221405,0.18043158,29704.0,29703.0,0.04142166]
[1609571221806,4.2557,29708.0,29703.0,0.04142166]
[1609571222007,4.2557,29708.0,29703.0,0.000381]
[1609571222206,4.2557,29708.0,29704.0,0.000381]
[1609571222707,4.2557,29708.0,29702.0,0.04142145]
[1609571222910,4.2557,29708.0,29704.0,0.18043158]
[1609571223109,4.2557,29708.0,29705.0,0.000381]
[1609571223809,4.25365189,29708.0,29705.0,0.000381]
[1609571224608,4.25365189,29708.0,29702.0,0.04142158]
[1609571224809,1.0,29711.0,29702.0,0.04142158]
[1609571225009,1.0,29711.0,29706.0,0.000381]
[1609571225209,1.0,29711.0,29704.0,0.18043158]
[1609571225411,1.0,29711.0,29707.0,0.000381]
[1609571225611,1.0,29713.0,29705.0,0.000381]
[1609571225911,1.0,29713.0,29708.0,0.000381]
[1609571226212,1.0,29713.0,29706.0,0.000381]
[1609571226412,1.0,29713.0,29709.0,0.000381]
[1609571226713,1.0,29713.0,29707.0,0.000381]
[1609571226913,0.18043158,29708.0,29707.0,0.000381]
[1609571227114,0.18043158,29708.0,29704.0,0.18043158]
[1609571227514,0.18043158,29708.0,29705.0,0.000381]
[1609571232020,0.18043158,29708.0,29704.0,0.18043158]
[1609571232221,0.33164158,29708.0,29706.0,0.00038101]
[1609571232622,0.33164158,29708.0,29705.0,0.00038101]
[1609571232822,0.33164158,29708.0,29707.0,0.00038101]
[1609571233021,0.33164158,29708.0,29706.0,0.00038101]
[1609571233323,0.33164158,29708.0,29707.0,0.00038101]
[1609571233522,0.33164158,29708.0,29705.0,0.00038101]
[1609571233822,0.33164158,29708.0,29707.0,0.00038101]
[1609571234124,0.33164158,29708.0,29706.0,0.00038101]
[1609571234326,0.33164158,29708.0,29707.0,0.00038101]
[1609571234924,0.33164158,29708.0,29705.0,0.00038101]
[1609571235124,0.33164158,29708.0,29707.0,0.00038101]
[1609571235325,0.32959355,29708.0,29707.0,0.00038101]
[1609571235524,0.32959355,29708.0,29706.0,0.00038101]
[1609571235725,0.32959355,29708.0,29705.0,0.00038101]
[1609571235926,0.32959355,29708.0,29707.0,0.00038101]
[1609571236224,0.32959355,29708.0,29706.0,0.00038101]
[1609571236425,0.32959355,29708.0,29707.0,0.00038101]
[1609571237026,0.32959355,29708.0,29705.0,0.04142231]
[1609571237227,0.32959355,29708.0,29707.0,0.00038101]
[1609571237627,0.32959355,29708.0,29706.0,0.00038101]
[1609571237826,0.32959355,29708.0,29707.0,0.00038101]
[1609571238326,0.32959355,29708.0,29706.0,0.00038101]
[1609571238628,0.32959355,29708.0,29705.0,0.00038101]
[1609571238828,0.32959355,29708.0,29707.0,0.00038101]
[1609571239127,0.32959355,29708.0,29706.0,0.00038101]
[1609571239427,0.32959355,29708.0,29707.0,0.00038101]
[1609571239929,0.32959355,29708.0,29705.0,0.04142239]
[1609571243134,0.32959355,29708.0,29707.0,0.18043158]
[1609571243335,0.32959355,29708.0,29707.0,0.22185417]
[1609571249045,0.32754573,29708.0,29707.0,0.22185417]
[1609571270975,4.17704573,29708.0,29707.0,0.22185417]
[1609571271575,5.17704573,29708.0,29707.0,0.22185417]
[1609571272279,5.17704573,29708.0,29707.0,0.04142259]
[1609571272479,1.32754573,29708.0,29707.0,0.04142259]
[1609571272679,1.32754573,29708.0,29699.0,0.0414258]
[1609571272878,1.32754573,29708.0,29698.0,0.1771]
[1609571272879,2.32754573,29708.0,29707.0,0.04142576]
[1609571273080,6.69964573,29708.0,29699.0,0.04142598]
[1609571273378,6.69964573,29708.0,29697.0,0.08208933]
[1609571273379,0.18043158,29700.0,29698.0,0.18043158]
[1609571273580,0.30131158,29700.0,29698.0,0.18043158]
[1609571273979,0.30131158,29700.0,29699.0,0.04142848]
[1609571278685,0.30131158,29700.0,29699.0,0.04142888]
[1609571281792,0.30131158,29700.0,29699.0,0.00038049]
[1609571284598,0.30131158,29700.0,29699.0,0.04142832]
[1609571285499,0.12088,29700.0,29699.0,0.04142832]
[1609571285699,0.18043158,29705.0,29699.0,0.04142832]
[1609571285899,0.11936,29700.0,29699.0,0.04142832]
[1609571290906,0.15121,29708.0,29699.0,0.04142832]
[1609571291407,0.15121,29708.0,29707.0,0.18043158]
[1609571291608,0.18043158,29709.0,29707.0,0.18043158]
[1609571291808,0.18043158,29709.0,29707.0,0.22147424]
[1609571292008,0.18043158,29709.0,29707.0,0.22185468]
[1609571292208,0.18043158,29709.0,29708.0,0.00038044]
[1609571294613,0.18043158,29709.0,29708.0,0.04142322]
[1609571296417,0.18043158,29709.0,29708.0,0.00038044]
[1609571296614,0.11133,29714.0,29708.0,0.04142273]
[1609571296815,0.30758035,29715.0,29708.0,0.04142273]
[1609571297615,0.48801193,29715.0,29714.0,0.18043158]
[1609571297819,0.47763158,29715.0,29714.0,0.18043158]
[1609571298017,0.47763158,29715.0,29714.0,0.18081198]
[1609571302119,0.2972,29715.0,29714.0,0.18081198]
[1609571302320,0.14882507,29721.0,29714.0,4.83721198]
[1609571302719,0.03101507,29721.0,29715.0,0.00038036]
[1609571303419,0.03101507,29721.0,29715.0,0.0414093]
[1609571303620,0.21144473,29727.0,29720.0,0.18043158]
[1609571303820,0.21144473,29727.0,29720.0,0.91223158]
[1609571304019,0.21144473,29727.0,29721.0,0.0003803]
[1609571304222,0.18043158,29727.0,29721.0,0.0003803]
[1609571305523,0.18043158,29727.0,29726.0,0.18043158]
[1609571305921,0.01039898,29730.0,29726.0,5.02863158]
[1609571306123,0.28059488,29732.0,29726.0,5.02901185]
[1609571306423,0.28059488,29732.0,29727.0,0.00038027]
[1609571307023,0.2702,29732.0,29727.0,0.00038027]
[1609571307624,0.45063158,29732.0,29731.0,0.18043158]
[1609571307826,0.45063158,29732.0,29731.0,5.22733158]
[1609571308024,0.45063158,29732.0,29731.0,5.22771183]
[1609571310227,0.2702,29732.0,29731.0,5.22771183]
[1609571314534,0.2702,29732.0,29731.0,5.22733158]
[1609571314838,0.2702,29732.0,29731.0,0.18043158]
[1609571317938,0.2702,29732.0,29731.0,0.95643158]
[1609571319739,0.2702,29732.0,29731.0,0.18043158]
[1609571320541,0.2702,29732.0,29731.0,4.65843158]
[1609571320942,0.2702,29732.0,29726.0,0.10784]
[1609571321143,0.2702,29732.0,29720.0,0.17304]
[1609571321344,0.2702,29732.0,29718.0,4.4776]
[1609571321544,1.0,29731.0,29726.0,0.18043158]
[1609571321746,1.7607,29731.0,29726.0,0.18043158]
[1609571323549,0.18043158,29727.0,29723.0,0.18043158]
[1609571325351,0.18043158,29727.0,29724.0,0.00038168]
[1609571325550,5.52183158,29727.0,29724.0,0.00038168]
[1609571325749,5.52183158,29727.0,29724.0,0.11467168]
[1609571325950,5.52183158,29727.0,29724.0,0.11429]
[1609571327751,5.52183158,29727.0,29725.0,0.00038169]
[1609571328553,5.52183158,29727.0,29724.0,0.11429]
[1609571328955,5.52183158,29727.0,29725.0,0.0003817]
[1609571329553,4.52183158,29727.0,29725.0,0.0003817]
[1609571329854,0.18043158,29727.0,29725.0,0.0003817]
[1609571333562,1.18043158,29727.0,29725.0,0.0003817]
[1609571335565,0.18043158,29727.0,29725.0,0.5671817]
[1609571335764,0.18043158,29727.0,29726.0,0.18043158]
[1609571336164,0.18043158,29727.0,29726.0,0.18081324]
[1609571336966,0.18043158,29727.0,29726.0,0.22183301]
[1609571337267,0.18043158,29727.0,29726.0,0.18081324]
[1609571338571,0.18043158,29727.0,29726.0,0.22183306]
[1609571338971,0.18043158,29727.0,29726.0,0.18081324]
[1609571339673,0.18043158,29727.0,29726.0,0.22183329]
[1609571341475,0.18043158,29727.0,29726.0,0.18081324]
[1609571342278,0.18043158,29727.0,29726.0,0.22183354]
[1609571343078,0.18043158,29727.0,29726.0,0.18081324]
[1609571344581,0.18043158,29727.0,29726.0,0.00038166]
[1609571344783,5.64733158,29727.0,29726.0,0.00038166]
[1609571345182,5.64733158,29727.0,29725.0,0.0003817]
[1609571345582,6.64733158,29727.0,29726.0,0.0003817]
[1609571345782,6.64733158,29727.0,29715.0,0.18043158]
[1609571345982,6.64733158,29727.0,29726.0,0.0003817]
[1609571346182,1.18043158,29727.0,29726.0,0.0003817]
[1609571346384,1.18043158,29727.0,29716.0,0.04140893]
[1609571346583,1.18043158,29727.0,29726.0,0.0003817]
[1609571346784,1.18043158,29727.0,29717.0,0.0003817]
[1609571347186,1.18043158,29727.0,29726.0,0.0003817]
[1609571347388,2.18043158,29727.0,29718.0,0.0003817]
[1609571347587,1.0,29719.0,29716.0,0.04102723]
[1609571347986,0.18043158,29717.0,29716.0,0.04102723]
[1609571348187,0.18043158,29717.0,29716.0,0.04140896]
[1609571352494,0.17838428,29717.0,29716.0,0.04140896]
[1609571352693,0.17838428,29717.0,29716.0,0.04140893]
[1609571354793,0.11253,29729.0,29716.0,0.04140893]
[1609571354993,1.0,29730.0,29716.0,0.04140893]
[1609571355195,1.0,29730.0,29717.0,4.5854]
[1609571355596,0.2702,29732.0,29718.0,0.04140592]
[1609571355896,0.2702,29732.0,29727.0,0.18043158]
[1609571356295,0.2702,29732.0,29728.0,0.00038167]
[1609571357097,0.2702,29732.0,29729.0,3.8084]
[1609571357597,0.2702,29732.0,29730.0,0.00038165]
[1609571357997,0.18043158,29731.0,29730.0,0.00038165]
[1609571359197,0.18043158,29731.0,29728.0,0.00038165]
[1609571359597,0.18043158,29731.0,29730.0,0.00038165]
[1609571359797,0.18043158,29731.0,29729.0,0.00038165]
[1609571359998,0.18043158,29731.0,29730.0,0.00038165]
[1609571360500,0.18043158,29731.0,29728.0,0.00038165]
[1609571360899,0.18043158,29731.0,29730.0,0.00038165]
[1609571361099,0.18043158,29731.0,29728.0,0.00038165]
[1609571361298,0.18043158,29731.0,29730.0,0.00038165]
[1609571361598,0.18043158,29731.0,29729.0,0.00038167]
[1609571361800,0.18043158,29731.0,29728.0,0.00038167]
[1609571362198,0.18043158,29731.0,29730.0,0.00038167]
[1609571362400,4.79523158,29731.0,29719.0,0.04140653]
[1609571362600,4.79523158,29731.0,29730.0,0.00038167]
[1609571363002,4.79523158,29731.0,29720.0,0.0003817]
[1609571363202,4.79523158,29731.0,29719.0,0.04140656]
[1609571363402,4.79523158,29731.0,29721.0,0.00038173]
[1609571363602,1.0,29726.0,29721.0,0.00038173]
[1609571363803,1.0,29726.0,29720.0,0.00038173]
[1609571364002,0.18043158,29721.0,29719.0,0.22184277]
[1609571364202,0.18043158,29721.0,29719.0,0.22146104]
[1609571364504,0.18043158,29721.0,29720.0,0.00038172]
[1609571365405,0.17838427,29721.0,29720.0,0.00038172]
[1609571366406,4.42618427,29721.0,29720.0,0.00038172]
[1609571367809,0.17838427,29721.0,29720.0,0.00038172]
[1609571371012,4.62388427,29721.0,29720.0,0.00038172]
[1609571372415,4.62388427,29721.0,29717.0,0.0414116]
[1609571373518,5.62388427,29721.0,29717.0,0.0414116]
[1609571374019,0.18043158,29718.0,29717.0,0.0414116]
[1609571375723,0.17838415,29718.0,29717.0,0.0414116]
[1609571379929,0.17838415,29718.0,29717.0,5.4487116]
[1609571381132,0.17838415,29718.0,29717.0,0.0414116]
[1609571388644,0.17633672,29718.0,29717.0,0.0414116]
[1609571392447,0.17633672,29718.0,29717.0,0.1760516]
[1609571401161,0.17428929,29718.0,29717.0,0.1760516]
[1609571412474,0.17224213,29718.0,29717.0,0.1760516]
[1609571414172,0.17224213,29718.0,29717.0,0.25810371]
[1609571417277,1.0,29729.0,29717.0,0.25810371]
[1609571417478,1.0,29729.0,29723.0,4.0451]
[1609571417678,0.30124236,29732.0,29723.0,4.0451]
[1609571418079,0.30124236,29732.0,29724.0,0.04140548]
[1609571418282,0.30124236,29732.0,29728.0,0.18043158]
[1609571418885,0.30124236,29732.0,29729.0,0.04140406]
[1609571419886,0.30124236,29732.0,29729.0,0.00038148]
[1609571420285,0.30124236,29732.0,29731.0,0.18043158]
[1609571420685,0.30124236,29732.0,29731.0,0.18081303]
[1609571422192,0.2702,29732.0,29731.0,0.18081303]
[1609571425392,0.26815328,29732.0,29731.0,0.18081303]
[1609571426194,0.26815328,29732.0,29731.0,0.21081303]
[1609571426799,0.26815328,29732.0,29731.0,5.21371303]
[1609571430099,0.26815328,29732.0,29731.0,0.21081303]
[1609571430302,0.44858486,29732.0,29731.0,0.21081303]
[1609571434202,0.44858486,29732.0,29731.0,4.60531303]
[1609571434403,0.26815328,29732.0,29731.0,4.60531303]
[1609571436104,0.26815328,29732.0,29731.0,4.64633147]
[1609571440614,0.2661066,29732.0,29731.0,4.64633147]
[1609571442014,2.41611191,29733.0,29731.0,4.64633147]
[1609571442616,2.41611191,29733.0,29732.0,0.04139979]
[1609571446619,2.41611191,29733.0,29732.0,0.15170979]
[1609571447420,2.41611191,29733.0,29732.0,0.25230979]
[1609571448120,2.41611191,29733.0,29732.0,0.15170979]
[1609571449422,2.41611191,29733.0,29732.0,0.25230979]
[1609571449623,2.41611191,29733.0,29732.0,0.15170979]
[1609571450523,2.41611191,29733.0,29732.0,0.25170979]
[1609571450724,2.414065,29733.0,29732.0,0.25170979]
[1609571454425,2.414065,29733.0,29732.0,0.15170979]
[1609571455428,2.414065,29733.0,29732.0,0.25310979]
[1609571455927,2.414065,29733.0,29732.0,0.15170979]
[1609571456929,2.410665,29733.0,29732.0,0.25330979]
[1609571460534,2.327665,29733.0,29732.0,0.25330979]
[1609571460933,2.297365,29733.0,29732.0,0.25330979]
[1609571462335,2.216365,29733.0,29732.0,0.25330979]
[1609571463536,2.134365,29733.0,29732.0,0.25330979]
[1609571465040,2.036565,29733.0,29732.0,0.25330979]
[1609571465240,1.970765,29733.0,29732.0,0.25330979]
[1609571465440,1.601465,29733.0,29732.0,0.25330979]
[1609571465642,1.170765,29733.0,29732.0,1.25330979]
[1609571465841,0.407865,29733.0,29732.0,1.25330979]
[1609571466042,0.243765,29733.0,29732.0,1.25330979]
[1609571466240,0.083765,29733.0,29732.0,1.25330979]
[1609571466540,0.001765,29733.0,29732.0,1.25330979]
[1609571466741,0.3,29740.0,29732.0,0.25330979]
[1609571467142,0.3,29740.0,29733.0,0.04138277]
[1609571468345,0.3,29740.0,29733.0,0.00038064]
[1609571468744,0.3,29740.0,29739.0,0.18043158]
[1609571469146,0.1588,29743.0,29739.0,0.18043158]
[1609571469346,2.85908278,29744.0,29742.0,4.491]
[1609571469545,2.85908278,29744.0,29743.0,1.0]
[1609571469746,2.85703737,29744.0,29743.0,1.0]
[1609571469945,2.85703737,29744.0,29743.0,1.0003806]
[1609571470547,2.85703737,29744.0,29743.0,1.1008806]
[1609571470747,2.85703737,29744.0,29743.0,1.28131218]
[1609571470951,2.85703737,29744.0,29743.0,3.2769327]
[1609571471149,2.85703737,29744.0,29743.0,2.2769327]
[1609571471348,2.85703737,29744.0,29743.0,3.2769327]
[1609571472350,2.85703737,29744.0,29743.0,2.2769327]
[1609571472548,2.85703737,29744.0,29743.0,3.2769327]
[1609571472952,2.85703737,29744.0,29743.0,1.28131218]
[1609571473150,2.85703737,29744.0,29743.0,1.1008806]
[1609571473651,2.85703737,29744.0,29743.0,0.28131218]
[1609571473853,2.85703737,29744.0,29743.0,1.28131218]
[1609571474854,2.85703737,29744.0,29743.0,0.28131218]
[1609571476355,2.85703737,29744.0,29743.0,1.28131218]
[1609571477358,2.85703737,29744.0,29743.0,0.28131218]
[1609571479261,2.65252426,29744.0,29743.0,0.28131218]
[1609571479461,2.65252426,29744.0,29743.0,4.26981218]
[1609571479661,2.65252426,29744.0,29743.0,4.16931218]
[1609571480265,2.65047879,29744.0,29743.0,4.16931218]
[1609571480862,2.65047879,29744.0,29743.0,0.18081218]
[1609571481663,2.83091037,29744.0,29743.0,0.18081218]
[1609571482664,2.83091037,29744.0,29743.0,0.0003806]
[1609571483167,2.83091037,29744.0,29737.0,0.00038072]
[1609571483566,2.65047879,29744.0,29738.0,0.18043158]
[1609571484166,2.65047879,29744.0,29739.0,0.00038072]
[1609571485668,2.83091037,29744.0,29743.0,0.18043158]
[1609571485869,2.83091037,29744.0,29739.0,0.00038072]
[1609571486069,2.83091037,29744.0,29743.0,0.03]
[1609571486470,2.83091037,29744.0,29743.0,0.03038069]
[1609571489572,2.83091037,29744.0,29743.0,0.21081227]
[1609571489773,3.83091037,29744.0,29743.0,0.03038069]
[1609571490575,2.83091037,29744.0,29743.0,0.03038069]
[1609571491577,2.83091037,29744.0,29743.0,0.21081227]
[1609571496180,2.65047879,29744.0,29743.0,0.21081227]
[1609571496682,2.64843303,29744.0,29743.0,0.21081227]
[1609571499987,3.64843303,29744.0,29743.0,0.21081227]
[1609571501190,2.64843303,29744.0,29743.0,0.21081227]
[1609571509799,2.64843303,29744.0,29743.0,0.25182221]
[1609571511102,2.64638705,29744.0,29743.0,0.25182221]
[1609571515405,2.64638705,29744.0,29743.0,4.89812221]
[1609571525415,2.64434114,29744.0,29743.0,4.89812221]
[1609571527718,3.64434114,29744.0,29743.0,4.89812221]
[1609571528319,3.64434114,29744.0,29743.0,4.85711227]
[1609571528519,3.64434114,29744.0,29743.0,4.89812197]
[1609571528720,2.64434114,29744.0,29743.0,4.89812197]
[1609571528920,2.64434114,29744.0,29743.0,0.25182197]
[1609571529521,2.64434114,29744.0,29743.0,0.21081227]
[1609571531222,2.64434114,29744.0,29743.0,0.03038069]
[1609571531823,2.82477272,29744.0,29743.0,0.03038069]
[1609571532423,2.64434114,29744.0,29743.0,0.03038069]
[1609571533525,3.64434114,29744.0,29743.0,0.03038069]
[1609571533728,4.82477272,29744.0,29743.0,0.03038069]
[1609571535330,3.82477272,29744.0,29743.0,0.03038069]
[1609571535731,2.82477272,29744.0,29743.0,0.03038069]
[1609571537134,7.08777272,29744.0,29743.0,0.03038069]
[1609571539135,2.82477272,29744.0,29743.0,0.03038069]
[1609571543443,3.82477272,29744.0,29743.0,0.03038069]
[1609571543645,9.37877272,29744.0,29743.0,0.03038069]
[1609571544544,9.99160579,29744.0,29743.0,0.03038069]
[1609571545244,11.21745645,29744.0,29743.0,0.03038069]
[1609571545445,11.21745645,29744.0,29723.0,2.01237387]
[1609571545645,11.66345645,29744.0,29723.0,2.01237387]
[1609571545846,0.18043158,29724.0,29721.0,2.01318774]
[1609571546249,0.18043158,29724.0,29722.0,0.00038177]
[1609571547149,0.18043158,29724.0,29719.0,0.00038182]
[1609571547349,0.18043158,29724.0,29723.0,0.00038182]
[1609571547555,0.18043158,29724.0,29719.0,0.00038182]
[1609571547750,0.18043158,29720.0,29719.0,0.00038182]
[1609571547949,0.18043158,29720.0,29717.0,0.13464]
[1609571548150,0.17838431,29720.0,29719.0,0.00038182]
[1609571548349,0.17838431,29720.0,29718.0,0.00038182]
[1609571548758,0.17838431,29720.0,29719.0,0.00038182]
[1609571549152,0.17838431,29720.0,29718.0,0.00038182]
[1609571549554,0.17838431,29720.0,29718.0,0.04141265]
[1609571549765,0.17838431,29720.0,29718.0,0.00038182]
[1609571550154,0.17838431,29720.0,29719.0,0.00038182]
[1609571550554,0.17838431,29720.0,29717.0,0.13464]
[1609571550555,0.17838431,29720.0,29718.0,0.00038182]
[1609571550956,0.17838431,29720.0,29719.0,0.00038182]
[1609571551164,0.17838431,29720.0,29719.0,0.00038183]
[1609571551359,0.17838431,29720.0,29718.0,0.00038183]
[1609571551659,0.17838431,29720.0,29719.0,0.00038183]
[1609571551860,0.17838431,29720.0,29718.0,0.00038183]
[1609571552259,0.17838431,29720.0,29719.0,0.00038183]
[1609571552761,0.17838431,29720.0,29718.0,0.00038183]
[1609571552960,0.17838431,29720.0,29719.0,0.00038183]
[1609571553160,0.17838431,29720.0,29718.0,0.00038183]
[1609571553561,0.17838431,29720.0,29719.0,0.00038183]
[1609571553965,0.17838431,29720.0,29718.0,0.00038183]
[1609571554361,0.17838431,29720.0,29719.0,0.00038183]
[1609571554762,0.17838431,29720.0,29718.0,0.00038181]
[1609571555162,0.17838431,29720.0,29719.0,0.00038181]
[1609571555564,0.17838431,29720.0,29718.0,0.00038181]
[1609571555965,0.17838431,29720.0,29719.0,0.00038181]
[1609571556364,0.17838431,29720.0,29718.0,0.00038181]
[1609571556764,0.17838431,29720.0,29719.0,0.00038181]
[1609571556964,0.17838431,29720.0,29718.0,0.00038181]
[1609571557165,0.17838431,29720.0,29719.0,0.00038181]
[1609571557664,0.17838431,29720.0,29718.0,0.00038181]
[1609571557966,0.17838431,29720.0,29719.0,0.00038181]
[1609571558566,0.17838431,29720.0,29718.0,0.00038181]
[1609571558767,0.17838431,29720.0,29719.0,0.00038181]
[1609571559267,0.17838431,29720.0,29717.0,0.13464]
[1609571559268,0.17838431,29720.0,29718.0,0.00038181]
[1609571559668,0.17838431,29720.0,29719.0,0.00038181]
[1609571559869,0.17838431,29720.0,29719.0,0.18043158]
[1609571560072,0.17633727,29720.0,29719.0,0.18081337]
[1609571560571,0.17633727,29720.0,29719.0,0.2218422]
[1609571561270,0.17633727,29720.0,29719.0,0.18081337]
[1609571562472,0.17633727,29720.0,29719.0,0.22184194]
[1609571563974,0.13953,29732.0,29719.0,0.22184194]
[1609571564176,0.2798,29740.0,29724.0,5.4979]
[1609571564574,0.2798,29740.0,29725.0,0.00038173]
[1609571564874,0.2798,29740.0,29725.0,0.04140195]
[1609571565977,0.2798,29740.0,29735.0,0.18043158]
[1609571566376,0.2798,29740.0,29736.0,0.00038231]
[1609571567479,0.2798,29740.0,29725.0,0.04139902]
[1609571567880,0.2798,29740.0,29737.0,0.00038231]
[1609571568079,0.2798,29740.0,29735.0,0.18043158]
[1609571568280,0.2798,29740.0,29738.0,0.00038231]
[1609571568479,0.2798,29740.0,29736.0,0.00038231]
[1609571568681,0.4066,29740.0,29736.0,0.00038231]
[1609571570081,0.18043158,29737.0,29736.0,0.00038231]
[1609571570482,0.01,29735.0,29724.0,5.4979]